[Event "Lithuanian Chess League 2021"]
[Site "Various cities"]
[Date "2021.05.09"]
[Round "4.8"]
[White "Steponavicius, Stasys"]
[Black "Stremavicius, Pijus"]
[Result "0-1"]
[WhiteElo "2193"]
[BlackElo "2214"]
[PlyCount "104"]
[EventDate "2021.??.??"]
[TimeControl "90/40+30:0"]
[WhiteClock "0:10:35"]
[BlackClock "1:40:59"]

1. d4 {[%emt 0:00:03]} Nf6 {[%emt 0:00:06]} 2. c4 {[%emt 0:00:09]} e6 {[%emt 0:
00:05]} 3. Nc3 {[%emt 0:00:07]} Bb4 {[%emt 0:00:07]} 4. Nf3 {[%emt 0:00:39]}
O-O {[%emt 0:00:15]} 5. g3 {[%emt 0:00:17]} b6 {[%emt 0:00:05]} 6. Bg2 {[%emt
0:00:31]} Bb7 {[%emt 0:00:06]} 7. Bd2 {[%emt 0:01:44]} c5 {[%emt 0:01:43]} 8.
O-O {[%emt 0:05:07]} cxd4 {[%emt 0:00:26]} 9. Nxd4 {[%emt 0:00:07]} Bxg2 {
[%emt 0:00:06]} 10. Kxg2 {[%emt 0:00:08]} d5 {[%emt 0:02:17]} 11. cxd5 {[%emt
0:17:22]} Nxd5 {[%emt 0:00:10]} 12. Ne4 {[%emt 0:00:55]} Be7 {[%emt 0:03:45]}
13. Rc1 {[%emt 0:05:28]} Nf6 {[%emt 0:01:53]} 14. Nxf6+ {[%emt 0:02:25]} Bxf6 {
[%emt 0:00:06]} 15. Bc3 {[%emt 0:19:56]} e5 {[%emt 0:03:28]} 16. Nf5 {[%emt 0:
08:33]} Nc6 {[%emt 0:00:40]} 17. Qxd8 {[%emt 0:07:15]} Rfxd8 {[%emt 0:00:19]}
18. Rfd1 {[%emt 0:00:11]} g6 {[%emt 0:02:06]} 19. Rd6 {[%emt 0:14:51]} Bg5 {
[%emt 0:04:10]} 20. e3 {[%emt 0:03:27]} Nd4 {[%emt 0:00:38]} 21. Rxd8+ {[%emt
0:04:08]} Rxd8 {[%emt 0:00:06]} 22. Nxd4 {[%emt 0:01:25]} exd4 {[%emt 0:00:10]}
23. Bxd4 {[%emt 0:00:16]} Rxd4 {[%emt 0:00:12]} 24. h4 {[%emt 0:00:09]} Bxe3 {
[%emt 0:00:13]} 25. fxe3 {[%emt 0:01:59]} Rd2+ {[%emt 0:00:05]} 26. Kf3 {[%emt
0:00:08]} Rxb2 {[%emt 0:00:03]} 27. a4 {[%emt 0:00:34]} h5 {[%emt 0:03:02]} 28.
Rc7 {[%emt 0:01:31]} a5 {[%emt 0:02:04]} 29. e4 {[%emt 0:00:38]} Rb4 {[%emt 0:
01:24]} 30. Rb7 {[%emt 0:00:21]} Rxa4 {[%emt 0:03:10]} 31. Rxb6 {[%emt 0:00:09]
} Rb4 {[%emt 0:00:35]} 32. Ra6 {[%emt 0:00:27]} a4 {[%emt 0:00:04]} 33. Ra7 {
[%emt 0:01:23]} Rb3+ {[%emt 0:00:36]} 34. Kf4 {[%emt 0:00:12]} a3 {[%emt 0:00:
13]} 35. e5 {[%emt 0:01:05]} Kf8 {[%emt 0:01:48]} 36. e6 {[%emt 0:03:32]} fxe6
{[%emt 0:01:15]} 37. g4 {[%emt 0:00:30]} Rb4+ {[%emt 0:01:51]} 38. Kg5 {[%emt
0:00:57]} Rxg4+ {[%emt 0:00:33]} 39. Kf6 {[%emt 0:00:06]} Kg8 {[%emt 0:01:27]}
40. Rxa3 {[%emt 0:01:03]} Kh7 {[%emt 0:00:12]} 41. Rh3 {[%emt 0:04:53]} Re4 {
[%emt 0:00:06]} 42. Kf7 {[%emt 0:00:22]} e5 {[%emt 0:00:43]} 43. Kf6 {[%emt 0:
00:55]} Kh6 {[%emt 0:00:09]} 44. Rh1 {[%emt 0:01:03]} Kh7 {[%emt 0:00:33]} 45.
Rh3 {[%emt 0:00:26]} Re1 {[%emt 0:00:05]} 46. Rh2 {[%emt 0:00:28]} e4 {[%emt 0:
00:33]} 47. Rg2 {[%emt 0:12:37]} e3 {[%emt 0:00:44]} 48. Rxg6 {[%emt 0:00:43]}
e2 {[%emt 0:00:41]} 49. Rg7+ {[%emt 0:00:44]} Kh8 {[%emt 0:00:05]} 50. Kf7 {
[%emt 0:00:16]} Rf1+ {[%emt 0:00:06]} 51. Kg6 {[%emt 0:03:12]} Rg1+ {[%emt 0:
00:08]} 52. Kh6 {[%emt 0:00:26]} Rxg7 {[%emt 0:00:06]} 0-1

[Event "Lithuanian Chess League 2021"]
[Site "Various cities"]
[Date "2021.05.09"]
[Round "4.9"]
[White "Vaznonis, Vytautas"]
[Black "Solys, Laimutis"]
[Result "0-1"]
[WhiteElo "2382"]
[BlackElo "2319"]
[PlyCount "74"]
[EventDate "2021.??.??"]
[TimeControl "90/40+30:0"]
[WhiteClock "0:01:25"]
[BlackClock "0:20:24"]

1. c4 {[%emt 0:00:03]} e6 {[%emt 0:00:20]} 2. Nc3 {[%emt 0:00:30]} d5 {[%emt 0:
00:09]} 3. d4 {[%emt 0:00:08]} a6 {[%emt 0:00:20]} 4. cxd5 {[%emt 0:02:11]}
exd5 {[%emt 0:00:07]} 5. Nf3 {[%emt 0:00:04]} Nf6 {[%emt 0:01:06]} 6. Bg5 {
[%emt 0:00:12]} Be6 {[%emt 0:00:07]} 7. e3 {[%emt 0:08:11]} Nbd7 {[%emt 0:00:
15]} 8. Bd3 {[%emt 0:05:33]} Bd6 {[%emt 0:00:12]} 9. O-O {[%emt 0:01:22]} O-O {
[%emt 0:00:09]} 10. Rc1 {[%emt 0:02:30]} c6 {[%emt 0:03:50]} 11. h3 {[%emt 0:
19:55]} Qc7 {[%emt 0:08:31]} 12. e4 {[%emt 0:36:04]} dxe4 {[%emt 0:06:09]} 13.
Nxe4 {[%emt 0:00:02]} Nxe4 {[%emt 0:02:59]} 14. Bxe4 {[%emt 0:00:02]} Nb6 {
[%emt 0:01:29]} 15. Bb1 {[%emt 0:01:07]} Nd5 {[%emt 0:02:04]} 16. Re1 {[%emt 0:
02:34]} Bf4 {[%emt 0:10:33]} 17. Bxf4 {[%emt 0:04:20]} Qxf4 {[%emt 0:04:07]}
18. Re4 {[%emt 0:01:22]} Qf6 {[%emt 0:01:59]} 19. Re5 {[%emt 0:02:44]} Nf4 {
[%emt 0:10:23]} 20. Ng5 {[%emt 0:01:23]} g6 {[%emt 0:01:55]} 21. Qf3 {[%emt 0:
03:11]} Bd5 {[%emt 0:12:47]} 22. Ne4 {[%emt 0:00:16]} Bxe4 {[%emt 0:00:34]} 23.
Bxe4 {[%emt 0:06:50]} Kg7 {[%emt 0:01:28]} 24. Kh2 {[%emt 0:00:34]} Rad8 {
[%emt 0:00:27]} 25. Qe3 {[%emt 0:01:22]} Ne6 {[%emt 0:00:28]} 26. Bb1 {[%emt 0:
00:14]} Rxd4 {[%emt 0:00:44]} 27. a3 {[%emt 0:00:26]} Rfd8 {[%emt 0:02:08]} 28.
Re1 {[%emt 0:00:28]} R8d6 {[%emt 0:03:16]} 29. Ba2 {[%emt 0:00:12]} Rd3 {[%emt
0:00:24]} 30. Qb6 {[%emt 0:00:52]} Ng5 {[%emt 0:01:55]} 31. Qxb7 {[%emt 0:00:
22]} Qf4+ {[%emt 0:04:59]} 32. Kg1 {[%emt 0:00:21]} Rd1 {[%emt 0:00:38]} 33.
Qe7 {[%emt 0:01:08]} R6d2 {[%emt 0:00:33]} 34. Rxg5 {[%emt 0:00:22]} Qxf2+ {
[%emt 0:00:25]} 35. Kh2 {[%emt 0:00:06]} Rxe1 {[%emt 0:00:16]} 36. Qb4 {[%emt
0:00:41]} Qg1+ {[%emt 0:00:22]} 37. Kg3 {[%emt 0:00:01]} Rxg2+ {[%emt 0:00:18]}
0-1

[Event "Lithuanian Chess League 2021"]
[Site "Various cities"]
[Date "2021.05.09"]
[Round "4.10"]
[White "Tamosiunas, Tomas"]
[Black "Greicius, Pijus"]
[Result "1/2-1/2"]
[WhiteElo "1947"]
[BlackElo "1980"]
[PlyCount "68"]
[EventDate "2021.??.??"]
[TimeControl "90/40+30:0"]
[WhiteClock "0:35:12"]
[BlackClock "0:13:37"]

1. e4 {[%emt 0:00:02]} e5 {[%emt 0:00:06]} 2. Nf3 {[%emt 0:00:10]} Nc6 {[%emt
0:00:08]} 3. Bb5 {[%emt 0:00:15]} a6 {[%emt 0:00:12]} 4. Ba4 {[%emt 0:00:05]}
Nf6 {[%emt 0:00:09]} 5. O-O {[%emt 0:00:15]} Be7 {[%emt 0:00:15]} 6. Re1 {
[%emt 0:00:07]} b5 {[%emt 0:00:08]} 7. Bb3 {[%emt 0:00:05]} O-O {[%emt 0:00:10]
} 8. c3 {[%emt 0:01:57]} d5 {[%emt 0:00:23]} 9. d4 {[%emt 0:00:06]} dxe4 {
[%emt 0:07:29]} 10. Nxe5 {[%emt 0:00:44]} Nxe5 {[%emt 0:01:56]} 11. dxe5 {
[%emt 0:00:07]} Qxd1 {[%emt 0:04:12]} 12. Bxd1 {[%emt 0:07:59]} Nd7 {[%emt 0:
03:39]} 13. Bc2 {[%emt 0:09:25]} f5 {[%emt 0:14:48]} 14. exf6 {[%emt 0:03:19]}
Nxf6 {[%emt 0:00:41]} 15. Be3 {[%emt 0:08:34]} Bb7 {[%emt 0:21:25]} 16. Nd2 {
[%emt 0:01:34]} Rad8 {[%emt 0:02:11]} 17. Rad1 {[%emt 0:03:44]} Ng4 {[%emt 0:
03:48]} 18. Nxe4 {[%emt 0:12:02]} Bxe4 {[%emt 0:08:18]} 19. Bxe4 {[%emt 0:00:
11]} Nxe3 {[%emt 0:00:09]} 20. fxe3 {[%emt 0:00:09]} Rxd1 {[%emt 0:01:50]} 21.
Rxd1 {[%emt 0:00:04]} Bg5 {[%emt 0:00:12]} 22. Rd3 {[%emt 0:04:53]} Rd8 {[%emt
0:05:30]} 23. Rxd8+ {[%emt 0:01:27]} Bxd8 {[%emt 0:00:08]} 24. Kf2 {[%emt 0:01:
14]} h6 {[%emt 0:03:28]} 25. Ke2 {[%emt 0:07:47]} c5 {[%emt 0:03:06]} 26. b4 {
[%emt 0:02:28]} cxb4 {[%emt 0:00:17]} 27. cxb4 {[%emt 0:00:06]} a5 {[%emt 0:00:
13]} 28. bxa5 {[%emt 0:00:38]} Bxa5 {[%emt 0:00:07]} 29. Bc6 {[%emt 0:00:28]}
b4 {[%emt 0:00:25]} 30. Kd3 {[%emt 0:00:09]} Bd8 {[%emt 0:05:32]} 31. Kc4 {
[%emt 0:00:43]} Be7 {[%emt 0:00:07]} 32. Kd5 {[%emt 0:00:20]} Kf7 {[%emt 0:00:
15]} 33. e4 {[%emt 0:00:48]} Bg5 {[%emt 0:02:25]} 34. h3 {[%emt 0:00:20]} Ke7 {
[%emt 0:00:13]} 1/2-1/2

[Event "Lithuanian Chess League 2021"]
[Site "Various cities"]
[Date "2021.05.09"]
[Round "4.12"]
[White "Likatavicius, Rapolas"]
[Black "Indriunas, Matas"]
[Result "0-1"]
[WhiteElo "1929"]
[BlackElo "2227"]
[PlyCount "64"]
[EventDate "2021.??.??"]
[TimeControl "90/40+30:0"]
[WhiteClock "0:08:41"]
[BlackClock "0:11:18"]

1. d4 {[%emt 0:00:00]} Nf6 {[%emt 0:00:14]} 2. g3 {[%emt 0:02:44]} d5 {[%emt 0:
06:55]} 3. Bg2 {[%emt 0:00:43]} e6 {[%emt 0:06:56]} 4. Nf3 {[%emt 0:00:07]} c6
{[%emt 0:06:16]} 5. O-O {[%emt 0:00:50]} Be7 {[%emt 0:00:23]} 6. c4 {[%emt 0:
00:26]} O-O {[%emt 0:00:58]} 7. Nbd2 {[%emt 0:01:56]} b6 {[%emt 0:02:55]} 8.
Qc2 {[%emt 0:00:58]} Bb7 {[%emt 0:01:06]} 9. e4 {[%emt 0:01:52]} dxe4 {[%emt 0:
13:37]} 10. Nxe4 {[%emt 0:00:20]} Nxe4 {[%emt 0:01:02]} 11. Qxe4 {[%emt 0:00:
22]} Nd7 {[%emt 0:00:27]} 12. Bf4 {[%emt 0:18:05]} Qc8 {[%emt 0:14:56]} 13. Ne5
{[%emt 0:05:56]} Nxe5 {[%emt 0:04:55]} 14. Bxe5 {[%emt 0:04:10]} Qd7 {[%emt 0:
02:04]} 15. Rad1 {[%emt 0:03:47]} g5 {[%emt 0:09:17]} 16. d5 {[%emt 0:22:01]}
cxd5 {[%emt 0:02:35]} 17. cxd5 {[%emt 0:07:58]} Bxd5 {[%emt 0:03:31]} 18. Qg4 {
[%emt 0:01:31]} Rad8 {[%emt 0:01:27]} 19. h4 {[%emt 0:07:37]} Qb7 {[%emt 0:01:
04]} 20. Rxd5 {[%emt 0:04:15]} exd5 {[%emt 0:03:27]} 21. hxg5 {[%emt 0:00:18]}
Qd7 {[%emt 0:00:45]} 22. Qd4 {[%emt 0:03:29]} Bxg5 {[%emt 0:03:08]} 23. Kh2 {
[%emt 0:01:31]} f6 {[%emt 0:00:26]} 24. Bf4 {[%emt 0:00:49]} Bxf4 {[%emt 0:00:
22]} 25. gxf4 {[%emt 0:00:30]} Kh8 {[%emt 0:00:20]} 26. Bh3 {[%emt 0:00:16]}
Qd6 {[%emt 0:00:10]} 27. Bf5 {[%emt 0:00:42]} Qc5 {[%emt 0:00:53]} 28. Qd1 {
[%emt 0:00:51]} Rf7 {[%emt 0:01:34]} 29. Qh5 {[%emt 0:00:40]} Rg7 {[%emt 0:00:
39]} 30. Qh4 {[%emt 0:00:12]} Qe7 {[%emt 0:00:26]} 31. Rd1 {[%emt 0:02:51]} d4
{[%emt 0:00:28]} 32. Rd3 {[%emt 0:00:05]} Qe1 {[%emt 0:01:50]} 0-1

[Event "Lithuanian Chess League 2021"]
[Site "Various cities"]
[Date "2021.05.09"]
[Round "4.13"]
[White "Limontas, Martynas"]
[Black "Kuznecovas, Kevinas"]
[Result "1-0"]
[WhiteElo "2311"]
[BlackElo "1882"]
[PlyCount "74"]
[EventDate "2021.??.??"]
[TimeControl "90/40+30:0"]
[WhiteClock "0:09:25"]
[BlackClock "0:09:55"]

1. Nf3 {[%emt 0:00:03]} Nf6 {[%emt 0:01:04]} 2. b3 {[%emt 0:02:16]} c5 {[%emt
0:01:08]} 3. Bb2 {[%emt 0:00:20]} d6 {[%emt 0:00:16]} 4. e3 {[%emt 0:02:04]}
Nc6 {[%emt 0:01:06]} 5. d4 {[%emt 0:00:09]} cxd4 {[%emt 0:02:51]} 6. exd4 {
[%emt 0:00:12]} Bf5 {[%emt 0:01:25]} 7. Be2 {[%emt 0:06:00]} e6 {[%emt 0:05:31]
} 8. O-O {[%emt 0:00:16]} d5 {[%emt 0:03:13]} 9. c4 {[%emt 0:01:00]} Bd6 {
[%emt 0:02:01]} 10. Nc3 {[%emt 0:10:19]} a6 {[%emt 0:02:29]} 11. a3 {[%emt 0:
07:54]} g5 {[%emt 0:06:37]} 12. Re1 {[%emt 0:06:45]} Kf8 {[%emt 0:00:50]} 13.
cxd5 {[%emt 0:09:18]} exd5 {[%emt 0:01:46]} 14. Ne5 {[%emt 0:00:07]} Qc7 {
[%emt 0:06:39]} 15. Rc1 {[%emt 0:00:42]} Rd8 {[%emt 0:06:27]} 16. Bd3 {[%emt 0:
07:55]} Be6 {[%emt 0:04:25]} 17. Ne2 {[%emt 0:06:29]} Ra8 {[%emt 0:04:26]} 18.
Ng3 {[%emt 0:01:09]} Bxe5 {[%emt 0:05:43]} 19. dxe5 {[%emt 0:00:35]} Nd7 {
[%emt 0:01:51]} 20. Qh5 {[%emt 0:02:03]} h6 {[%emt 0:06:15]} 21. h4 {[%emt 0:
00:09]} gxh4 {[%emt 0:06:26]} 22. Qxh4 {[%emt 0:04:36]} Qd8 {[%emt 0:00:36]}
23. Qxd8+ {[%emt 0:00:22]} Nxd8 {[%emt 0:05:23]} 24. f4 {[%emt 0:01:16]} Rg8 {
[%emt 0:00:45]} 25. Kf2 {[%emt 0:00:13]} Bg4 {[%emt 0:00:36]} 26. f5 {[%emt 0:
09:59]} Nc6 {[%emt 0:02:08]} 27. e6 {[%emt 0:02:23]} Nb6 {[%emt 0:01:25]} 28.
exf7 {[%emt 0:03:16]} Kxf7 {[%emt 0:00:07]} 29. Re6 {[%emt 0:01:25]} Rae8 {
[%emt 0:04:40]} 30. Rxh6 {[%emt 0:01:21]} Re7 {[%emt 0:03:09]} 31. Bxa6 {[%emt
0:01:34]} bxa6 {[%emt 0:02:30]} 32. Rcxc6 {[%emt 0:00:19]} Nd7 {[%emt 0:00:26]}
33. Rc7 {[%emt 0:05:06]} Bd1 {[%emt 0:04:06]} 34. Rh7+ {[%emt 0:00:53]} Kf8 {
[%emt 0:00:12]} 35. Rxd7 {[%emt 0:00:20]} Rxh7 {[%emt 0:00:12]} 36. Rxh7 {
[%emt 0:00:06]} Bxb3 {[%emt 0:00:05]} 37. Rh8 {[%emt 0:00:28]} Rxh8 {[%emt 0:
00:10]} 1-0

[Event "Lithuanian Chess League 2021"]
[Site "Various cities"]
[Date "2021.05.09"]
[Round "4.14"]
[White "Dailidenas, Justas"]
[Black "Mickevicius, Juras"]
[Result "0-1"]
[WhiteElo "1716"]
[BlackElo "2281"]
[PlyCount "96"]
[EventDate "2021.??.??"]
[TimeControl "90/40+30:0"]
[WhiteClock "0:38:40"]
[BlackClock "0:29:31"]

1. c4 {[%emt 0:00:50]} e6 {[%emt 0:00:06]} 2. Nf3 {[%emt 0:01:19]} d5 {[%emt 0:
00:21]} 3. e3 {[%emt 0:00:41]} Nf6 {[%emt 0:00:04]} 4. d4 {[%emt 0:00:56]} Be7
{[%emt 0:00:08]} 5. Be2 {[%emt 0:00:45]} O-O {[%emt 0:00:12]} 6. O-O {[%emt 0:
00:02]} dxc4 {[%emt 0:00:08]} 7. Bxc4 {[%emt 0:00:05]} b6 {[%emt 0:00:06]} 8.
b3 {[%emt 0:01:02]} Bb7 {[%emt 0:00:26]} 9. Ba3 {[%emt 0:00:43]} Nbd7 {[%emt 0:
01:58]} 10. Bxe7 {[%emt 0:04:31]} Qxe7 {[%emt 0:00:03]} 11. Nbd2 {[%emt 0:03:
01]} c5 {[%emt 0:01:04]} 12. Qe2 {[%emt 0:01:20]} cxd4 {[%emt 0:02:16]} 13.
Nxd4 {[%emt 0:00:55]} Nc5 {[%emt 0:00:54]} 14. Rfd1 {[%emt 0:20:31]} Rfd8 {
[%emt 0:02:24]} 15. Rac1 {[%emt 0:00:49]} Rac8 {[%emt 0:02:50]} 16. N2f3 {
[%emt 0:08:10]} Nfe4 {[%emt 0:09:54]} 17. Qb2 {[%emt 0:04:38]} Nd6 {[%emt 0:04:
37]} 18. Be2 {[%emt 0:03:44]} Nce4 {[%emt 0:15:07]} 19. Rxc8 {[%emt 0:07:19]}
Rxc8 {[%emt 0:04:56]} 20. Rc1 {[%emt 0:00:25]} Rxc1+ {[%emt 0:02:01]} 21. Qxc1
{[%emt 0:00:01]} a5 {[%emt 0:00:55]} 22. Nb5 {[%emt 0:02:11]} Nxb5 {[%emt 0:01:
14]} 23. Bxb5 {[%emt 0:00:35]} Nc5 {[%emt 0:00:11]} 24. Nd4 {[%emt 0:03:04]} e5
{[%emt 0:03:11]} 25. Nf5 {[%emt 0:01:54]} Qg5 {[%emt 0:03:40]} 26. Ng3 {[%emt
0:01:14]} h5 {[%emt 0:00:41]} 27. Bf1 {[%emt 0:02:37]} h4 {[%emt 0:01:34]} 28.
Ne2 {[%emt 0:00:05]} Qf6 {[%emt 0:03:24]} 29. Qc4 {[%emt 0:04:59]} Ne4 {[%emt
0:05:23]} 30. f3 {[%emt 0:01:39]} Nc5 {[%emt 0:06:42]} 31. e4 {[%emt 0:03:26]}
Ba6 {[%emt 0:04:20]} 32. Qd5 {[%emt 0:00:26]} Bxe2 {[%emt 0:22:08]} 33. Bxe2 {
[%emt 0:00:00]} g6 {[%emt 0:00:05]} 34. Bc4 {[%emt 0:00:11]} Kg7 {[%emt 0:00:
05]} 35. Kf2 {[%emt 0:00:45]} Qe7 {[%emt 0:00:31]} 36. Qc6 {[%emt 0:01:29]} Qd8
{[%emt 0:00:17]} 37. Qd5 {[%emt 0:00:14]} Qc7 {[%emt 0:00:27]} 38. Qd2 {[%emt
0:01:28]} Qe7 {[%emt 0:03:09]} 39. Qd5 {[%emt 0:00:17]} Qf6 {[%emt 0:00:29]}
40. g3 {[%emt 0:01:59]} hxg3+ {[%emt 0:01:01]} 41. hxg3 {[%emt 0:00:01]} g5 {
[%emt 0:00:58]} 42. g4 {[%emt 0:02:26]} Ne6 {[%emt 0:04:08]} 43. Qd6 {[%emt 0:
02:24]} Nd4 {[%emt 0:00:04]} 44. Qxf6+ {[%emt 0:00:25]} Kxf6 {[%emt 0:00:02]}
45. Ke3 {[%emt 0:00:04]} Ke7 {[%emt 0:00:10]} 46. Be2 {[%emt 0:07:02]} Kd6 {
[%emt 0:00:23]} 47. Bd3 {[%emt 0:02:55]} Kc5 {[%emt 0:00:14]} 48. a3 {[%emt 0:
00:29]} Nxb3 {[%emt 0:00:10]} 0-1

[Event "Lithuanian Chess League 2021"]
[Site "Various cities"]
[Date "2021.05.09"]
[Round "4.15"]
[White "Viskelis, Darius"]
[Black "Posaskov, Nikita"]
[Result "1/2-1/2"]
[WhiteElo "2223"]
[BlackElo "1706"]
[PlyCount "66"]
[EventDate "2021.??.??"]
[TimeControl "90/40+30:0"]
[WhiteClock "0:27:33"]
[BlackClock "0:11:25"]

1. e4 {[%emt 0:00:03]} c6 {[%emt 0:00:06]} 2. d4 {[%emt 0:00:27]} d5 {[%emt 0:
00:06]} 3. exd5 {[%emt 0:00:07]} cxd5 {[%emt 0:00:06]} 4. c4 {[%emt 0:00:13]}
Nf6 {[%emt 0:00:07]} 5. Nc3 {[%emt 0:00:15]} e6 {[%emt 0:00:10]} 6. Nf3 {[%emt
0:00:20]} Bb4 {[%emt 0:07:19]} 7. Qa4+ {[%emt 0:06:05]} Nc6 {[%emt 0:00:15]} 8.
c5 {[%emt 0:00:36]} Bxc3+ {[%emt 0:10:35]} 9. bxc3 {[%emt 0:00:07]} Ne4 {[%emt
0:00:02]} 10. Bd3 {[%emt 0:08:03]} Nxc3 {[%emt 0:07:51]} 11. Qc2 {[%emt 0:00:
11]} Ne4 {[%emt 0:04:24]} 12. Bxe4 {[%emt 0:00:57]} dxe4 {[%emt 0:00:07]} 13.
Qxe4 {[%emt 0:00:06]} Qd5 {[%emt 0:11:40]} 14. Qg4 {[%emt 0:02:18]} Bd7 {[%emt
0:04:11]} 15. O-O {[%emt 0:04:06]} e5 {[%emt 0:03:14]} 16. Qg3 {[%emt 0:12:25]}
Nxd4 {[%emt 0:12:09]} 17. Nxd4 {[%emt 0:00:53]} Qxd4 {[%emt 0:05:48]} 18. Rb1 {
[%emt 0:03:18]} Qe4 {[%emt 0:02:45]} 19. Bb2 {[%emt 0:10:50]} O-O {[%emt 0:06:
17]} 20. Bxe5 {[%emt 0:00:52]} f6 {[%emt 0:00:06]} 21. Rfe1 {[%emt 0:04:25]}
Qc6 {[%emt 0:01:33]} 22. Bd6 {[%emt 0:00:35]} Rfe8 {[%emt 0:01:58]} 23. Qb3+ {
[%emt 0:00:32]} Kh8 {[%emt 0:00:58]} 24. Qf7 {[%emt 0:00:13]} Bf5 {[%emt 0:04:
31]} 25. Rbd1 {[%emt 0:06:40]} Qd7 {[%emt 0:03:33]} 26. Qd5 {[%emt 0:01:54]}
Rxe1+ {[%emt 0:00:22]} 27. Rxe1 {[%emt 0:00:08]} Re8 {[%emt 0:00:02]} 28. Rc1 {
[%emt 0:06:04]} Be4 {[%emt 0:01:24]} 29. Qh5 {[%emt 0:02:42]} Bc6 {[%emt 0:03:
03]} 30. h3 {[%emt 0:00:17]} Qe6 {[%emt 0:00:26]} 31. a3 {[%emt 0:03:08]} Qe4 {
[%emt 0:00:16]} 32. Qg4 {[%emt 0:00:15]} Qxg4 {[%emt 0:00:06]} 33. hxg4 {[%emt
0:00:07]} Kg8 {[%emt 0:00:18]} 1/2-1/2